[Event "December 12 Late 2023"]
[Site "https://www.chess.com"]
[Date "2023.12.12"]
[Round "8"]
[White "Liu, Casper"]
[Black "Nadera, Barlo A."]
[Result "0-1"]
[Board "89"]
[TimeControl "180+1"]
[WhiteFideId "1454153"]
[BlackFideId "5200598"]
[WhiteElo "2444"]
[BlackElo "2206"]
[WhiteTeam "DEN"]
[BlackTeam "PHI"]
[WhiteClock "0:00:02"]
[BlackClock "0:00:14"]

1. f4 {[%clk 0:03:00]}  d5 {[%clk 0:02:58]} 2. Nf3 {[%clk 0:03:01]}  g6 {[%clk 0:02:57]} 3. e3 {[%clk 0:03:01]}  Bg7 {[%clk 0:02:58]} 4. g3 {[%clk 0:03:02]}  c5 {[%clk 0:02:57]} 5. Bg2 {[%clk 0:03:03]}  Nc6 {[%clk 0:02:57]} 6. O-O {[%clk 0:03:04]}  Nh6 {[%clk 0:02:54]} 7. d3 {[%clk 0:03:04]}  O-O {[%clk 0:02:51]} 8. Nc3 {[%clk 0:03:05]}  e6 {[%clk 0:02:40]} 9. e4 {[%clk 0:03:05]}  d4 {[%clk 0:02:35]} 10. Ne2 {[%clk 0:03:04]}  f5 {[%clk 0:02:32]} 11. e5 {[%clk 0:03:00]}  Nf7 {[%clk 0:02:31]} 12. c3 {[%clk 0:02:56]}  dxc3 {[%clk 0:02:29]} 13. bxc3 {[%clk 0:02:55]}  Qa5 {[%clk 0:02:18]} 14. Be3 {[%clk 0:02:53]}  Rd8 {[%clk 0:02:17]} 15. Qc2 {[%clk 0:02:36]}  Ne7 {[%clk 0:02:15]} 16. Nd2 {[%clk 0:02:29]}  Nd5 {[%clk 0:02:11]} 17. Bf2 {[%clk 0:02:29]}  b5 {[%clk 0:02:04]} 18. Bxc5 {[%clk 0:02:26]}  Qc7 {[%clk 0:01:58]} 19. Bf2 {[%clk 0:01:55]}  g5 {[%clk 0:01:57]} 20. Rac1 {[%clk 0:01:50]}  Bb7 {[%clk 0:01:44]} 21. Nd4 {[%clk 0:01:42]}  Qd7 {[%clk 0:01:42]} 22. N4b3 {[%clk 0:01:20]}  Bc6 {[%clk 0:01:31]} 23. Na5 {[%clk 0:01:03]}  Rac8 {[%clk 0:01:27]} 24. Qb3 {[%clk 0:00:33]}  Ba8 {[%clk 0:01:25]} 25. Bd4 {[%clk 0:00:27]}  gxf4 {[%clk 0:01:24]} 26. gxf4 {[%clk 0:00:28]}  Bh6 {[%clk 0:01:18]} 27. Nf3 {[%clk 0:00:16]}  Nxf4 {[%clk 0:01:16]} 28. Bh1 {[%clk 0:00:08]}  Nxd3 {[%clk 0:01:11]} 29. Rcd1 {[%clk 0:00:07]}  Bd5 {[%clk 0:01:09]} 30. Qc2 {[%clk 0:00:07]}  Nc5 {[%clk 0:01:04]} 31. Qf2 {[%clk 0:00:04]}  Ne4 {[%clk 0:01:03]} 32. Qh4 {[%clk 0:00:04]}  Bg7 {[%clk 0:01:01]} 33. Bg2 {[%clk 0:00:04]}  Nxc3 {[%clk 0:00:58]} 34. Bxc3 {[%clk 0:00:01]}  Rxc3 {[%clk 0:00:57]} 35. Nb3 {[%clk 0:00:02]}  Rdc8 {[%clk 0:00:52]} 36. Nbd4 {[%clk 0:00:02]}  a6 {[%clk 0:00:47]} 37. Qg3 {[%clk 0:00:02]}  Kh8 {[%clk 0:00:44]} 38. Qh4 {[%clk 0:00:03]}  Qd8 {[%clk 0:00:40]} 39. Ne2 {[%clk 0:00:03]}  Qxh4 {[%clk 0:00:36]} 40. Nxh4 {[%clk 0:00:04]}  Rc2 {[%clk 0:00:33]} 41. Bxd5 {[%clk 0:00:04]}  exd5 {[%clk 0:00:25]} 42. Nd4 {[%clk 0:00:04]}  Rxa2 {[%clk 0:00:24]} 43. e6 {[%clk 0:00:05]}  Ng5 {[%clk 0:00:20]} 44. Nhxf5 {[%clk 0:00:05]}  Be5 {[%clk 0:00:16]} 45. e7 {[%clk 0:00:02]}  Nh3+ {[%clk 0:00:14]} 46. Kh1 {[%clk 0:00:02]}  Rxh2# {[%clk 0:00:14]} 0-1

[Event "December 12 Late 2023"]
[Site "https://www.chess.com"]
[Date "2023.12.12"]
[Round "8"]
[White "Osmonbekov, Talaibek"]
[Black "Buenafe Moya, Javier"]
[Result "1-0"]
[Board "95"]
[TimeControl "180+1"]
[WhiteFideId "2017253"]
[BlackFideId "2206412"]
[WhiteElo "2278"]
[BlackElo "2376"]
[WhiteTeam "USA"]
[BlackTeam "ESP"]
[WhiteClock "0:01:00"]
[BlackClock "0:00:07"]

1. d4 {[%clk 0:03:00]}  Nf6 {[%clk 0:02:58]} 2. Nc3 {[%clk 0:03:01]}  d5 {[%clk 0:02:57]} 3. Bf4 {[%clk 0:03:01]}  c6 {[%clk 0:02:44]} 4. e3 {[%clk 0:03:02]}  Bf5 {[%clk 0:02:42]} 5. Nf3 {[%clk 0:03:01]}  e6 {[%clk 0:02:41]} 6. Ne5 {[%clk 0:03:01]}  h6 {[%clk 0:02:40]} 7. g4 {[%clk 0:03:02]}  Bh7 {[%clk 0:02:38]} 8. Bd3 {[%clk 0:02:59]}  Bxd3 {[%clk 0:02:36]} 9. Qxd3 {[%clk 0:03:00]}  Bd6 {[%clk 0:02:33]} 10. O-O-O {[%clk 0:02:56]}  a5 {[%clk 0:02:30]} 11. h4 {[%clk 0:02:55]}  a4 {[%clk 0:02:23]} 12. g5 {[%clk 0:02:47]}  Nh5 {[%clk 0:02:21]} 13. g6 {[%clk 0:02:08]}  f5 {[%clk 0:01:24]} 14. Nf7 {[%clk 0:02:05]}  Nxf4 {[%clk 0:01:22]} 15. exf4 {[%clk 0:02:04]}  Bxf4+ {[%clk 0:01:21]} 16. Kb1 {[%clk 0:02:03]}  Qf6 {[%clk 0:01:05]} 17. Nxh8 {[%clk 0:02:01]}  a3 {[%clk 0:01:03]} 18. b3 {[%clk 0:02:00]}  Na6 {[%clk 0:01:03]} 19. h5 {[%clk 0:01:45]}  Rc8 {[%clk 0:00:52]} 20. Nf7 {[%clk 0:01:43]}  Kf8 {[%clk 0:00:45]} 21. Rhe1 {[%clk 0:01:33]}  Ke7 {[%clk 0:00:40]} 22. Na4 {[%clk 0:01:22]}  b5 {[%clk 0:00:22]} 23. Nc3 {[%clk 0:01:21]}  Nb4 {[%clk 0:00:20]} 24. Qf3 {[%clk 0:01:13]}  Bc7 {[%clk 0:00:18]} 25. Ne5 {[%clk 0:01:09]}  Ba5 {[%clk 0:00:16]} 26. Re3 {[%clk 0:01:04]}  Na6 {[%clk 0:00:14]} 27. Nxc6+ {[%clk 0:00:59]}  Rxc6 {[%clk 0:00:14]} 28. Nxd5+ {[%clk 0:00:59]}  Kf8 {[%clk 0:00:11]} 29. Nxf6 {[%clk 0:01:00]}  gxf6 {[%clk 0:00:07]} 30. Qxc6 {[%clk 0:01:00]} 1-0

[Event "December 12 Late 2023"]
[Site "https://www.chess.com"]
[Date "2023.12.12"]
[Round "8"]
[White "Kujawski, Adam"]
[Black "De Souza, Cristiano Gomes"]
[Result "0-1"]
[Board "96"]
[TimeControl "180+1"]
[WhiteFideId "1100920"]
[BlackFideId "2151758"]
[WhiteElo "2350"]
[BlackElo "2242"]
[WhiteTeam "POL"]
[BlackTeam "BRA"]
[WhiteClock "0:00:00"]
[BlackClock "0:00:54"]

1. e4 {[%clk 0:03:00]}  c5 {[%clk 0:02:59]} 2. Nf3 {[%clk 0:03:00]}  d6 {[%clk 0:02:59]} 3. d4 {[%clk 0:03:00]}  cxd4 {[%clk 0:02:58]} 4. Nxd4 {[%clk 0:03:01]}  Nf6 {[%clk 0:02:58]} 5. Nc3 {[%clk 0:03:02]}  a6 {[%clk 0:02:58]} 6. Bg5 {[%clk 0:03:01]}  e6 {[%clk 0:02:58]} 7. f4 {[%clk 0:03:01]}  Be7 {[%clk 0:02:57]} 8. Qf3 {[%clk 0:03:00]}  h6 {[%clk 0:02:58]} 9. Bh4 {[%clk 0:02:59]}  g5 {[%clk 0:02:58]} 10. fxg5 {[%clk 0:02:14]}  Nfd7 {[%clk 0:02:57]} 11. Qh5 {[%clk 0:01:55]}  Ne5 {[%clk 0:02:32]} 12. Bf2 {[%clk 0:01:52]}  Bxg5 {[%clk 0:02:29]} 13. h4 {[%clk 0:01:49]}  Bf6 {[%clk 0:02:25]} 14. O-O-O {[%clk 0:01:46]}  Nbc6 {[%clk 0:02:23]} 15. Be2 {[%clk 0:01:41]}  Qe7 {[%clk 0:02:16]} 16. Rhf1 {[%clk 0:01:39]}  Bd7 {[%clk 0:02:11]} 17. Nb3 {[%clk 0:01:19]}  O-O-O {[%clk 0:02:07]} 18. g3 {[%clk 0:01:13]}  Bg7 {[%clk 0:01:50]} 19. Rd2 {[%clk 0:01:11]}  f5 {[%clk 0:01:49]} 20. Bd1 {[%clk 0:00:56]}  fxe4 {[%clk 0:01:41]} 21. Nxe4 {[%clk 0:00:53]}  Be8 {[%clk 0:01:38]} 22. Qe2 {[%clk 0:00:53]}  Bg6 {[%clk 0:01:34]} 23. Bb6 {[%clk 0:00:51]}  Rd7 {[%clk 0:01:30]} 24. Kb1 {[%clk 0:00:46]}  Rf8 {[%clk 0:01:27]} 25. Rxf8+ {[%clk 0:00:46]}  Qxf8 {[%clk 0:01:27]} 26. h5 {[%clk 0:00:46]}  Bh7 {[%clk 0:01:22]} 27. Nd4 {[%clk 0:00:34]}  Nxd4 {[%clk 0:01:16]} 28. Bxd4 {[%clk 0:00:30]}  d5 {[%clk 0:01:07]} 29. Bc5 {[%clk 0:00:25]}  Qh8 {[%clk 0:00:56]} 30. Nf2 {[%clk 0:00:00]}  Nc4 {[%clk 0:00:54]} 0-1

[Event "December 12 Late 2023"]
[Site "https://www.chess.com"]
[Date "2023.12.12"]
[Round "8"]
[White "ogpin"]
[Black "Rose, Felix"]
[Result "0-1"]
[Board "97"]
[TimeControl "180+1"]
[BlackFideId "5105722"]
[WhiteElo "2168"]
[BlackElo "2327"]
[BlackTeam "MEX"]
[WhiteClock "0:00:00"]
[BlackClock "0:00:20"]

1. e4 {[%clk 0:03:00]}  g6 {[%clk 0:02:58]} 2. d4 {[%clk 0:03:00]}  d6 {[%clk 0:02:58]} 3. Be3 {[%clk 0:03:00]}  Nf6 {[%clk 0:02:52]} 4. Nc3 {[%clk 0:03:00]}  c6 {[%clk 0:02:44]} 5. f3 {[%clk 0:03:00]}  Nbd7 {[%clk 0:02:41]} 6. Qd2 {[%clk 0:02:58]}  b5 {[%clk 0:02:36]} 7. Bd3 {[%clk 0:02:57]}  a5 {[%clk 0:02:25]} 8. g4 {[%clk 0:02:50]}  Nb6 {[%clk 0:02:22]} 9. g5 {[%clk 0:02:43]}  Nfd7 {[%clk 0:02:15]} 10. h4 {[%clk 0:02:43]}  b4 {[%clk 0:02:08]} 11. Nce2 {[%clk 0:02:42]}  Qc7 {[%clk 0:01:53]} 12. h5 {[%clk 0:02:40]}  Rg8 {[%clk 0:01:52]} 13. hxg6 {[%clk 0:02:37]}  hxg6 {[%clk 0:01:52]} 14. Nh3 {[%clk 0:02:26]}  Bb7 {[%clk 0:01:51]} 15. Nf2 {[%clk 0:02:15]}  Bg7 {[%clk 0:01:46]} 16. c3 {[%clk 0:01:56]}  c5 {[%clk 0:01:26]} 17. Bb5 {[%clk 0:01:55]}  O-O-O {[%clk 0:01:22]} 18. a3 {[%clk 0:01:52]}  b3 {[%clk 0:01:20]} 19. c4 {[%clk 0:01:38]}  a4 {[%clk 0:01:03]} 20. Nc3 {[%clk 0:01:16]}  Bc6 {[%clk 0:00:50]} 21. d5 {[%clk 0:01:06]}  Bxb5 {[%clk 0:00:28]} 22. Nxb5 {[%clk 0:01:07]}  Nxc4 {[%clk 0:00:20]} 23. Nxc7 {[%clk 0:00:50]}  Nxd2 {[%clk 0:00:20]} 24. Bxd2 {[%clk 0:00:46]}  Kxc7 {[%clk 0:00:20]} 25. Nd3 {[%clk 0:00:46]}  Rh8 {[%clk 0:00:18]} 26. Ke2 {[%clk 0:00:42]}  Rxh1 {[%clk 0:00:18]} 27. Rxh1 {[%clk 0:00:43]}  Rh8 {[%clk 0:00:19]} 28. Rxh8 {[%clk 0:00:32]}  Bxh8 {[%clk 0:00:20]} 29. Bc1 {[%clk 0:00:27]}  Nb6 {[%clk 0:00:20]} 30. f4 {[%clk 0:00:23]}  Nc4 {[%clk 0:00:20]} 31. Kf3 {[%clk 0:00:21]}  Kd7 {[%clk 0:00:18]} 32. Kg4 {[%clk 0:00:21]}  e6 {[%clk 0:00:18]} 33. f5 {[%clk 0:00:19]}  exf5+ {[%clk 0:00:17]} 34. exf5 {[%clk 0:00:19]}  Bd4 {[%clk 0:00:17]} 35. fxg6 {[%clk 0:00:14]}  fxg6 {[%clk 0:00:17]} 36. Kf3 {[%clk 0:00:15]}  Ke7 {[%clk 0:00:17]} 37. Kg4 {[%clk 0:00:15]}  Kf7 {[%clk 0:00:17]} 38. Kf3 {[%clk 0:00:16]}  Bg7 {[%clk 0:00:16]} 39. Kg4 {[%clk 0:00:16]}  Ne5+ {[%clk 0:00:16]} 40. Nxe5+ {[%clk 0:00:16]}  Bxe5 {[%clk 0:00:17]} 41. Kf3 {[%clk 0:00:16]}  c4 {[%clk 0:00:17]} 42. Ke4 {[%clk 0:00:03]}  c3 {[%clk 0:00:18]} 43. bxc3 {[%clk 0:00:04]}  Bxc3 {[%clk 0:00:19]} 44. Kd3 {[%clk 0:00:05]}  b2 {[%clk 0:00:18]} 45. Bxb2 {[%clk 0:00:05]}  Bxb2 {[%clk 0:00:19]} 46. Kc2 {[%clk 0:00:00]}  Bxa3 {[%clk 0:00:20]} 0-1

[Event "December 12 Late 2023"]
[Site "https://www.chess.com"]
[Date "2023.12.12"]
[Round "8"]
[White "Ghosh, Chanchal Kumer"]
[Black "Ruiz Aguilar, Pablo Alexander"]
[Result "1-0"]
[Board "98"]
[TimeControl "180+1"]
[WhiteFideId "10201858"]
[BlackFideId "4401352"]
[WhiteElo "2104"]
[BlackElo "2308"]
[WhiteTeam "BAN"]
[BlackTeam "COL"]
[WhiteClock "0:00:40"]
[BlackClock "0:01:34"]

1. e4 {[%clk 0:02:50]}  c5 {[%clk 0:02:59]} 2. Nf3 {[%clk 0:02:49]}  e6 {[%clk 0:03:00]} 3. d4 {[%clk 0:02:50]}  cxd4 {[%clk 0:03:00]} 4. Nxd4 {[%clk 0:02:51]}  a6 {[%clk 0:02:59]} 5. Bd3 {[%clk 0:02:51]}  Nf6 {[%clk 0:02:59]} 6. O-O {[%clk 0:02:51]}  d6 {[%clk 0:02:58]} 7. Bg5 {[%clk 0:02:51]}  Be7 {[%clk 0:02:58]} 8. Nc3 {[%clk 0:02:50]}  Qc7 {[%clk 0:02:57]} 9. Kh1 {[%clk 0:02:47]}  b5 {[%clk 0:02:58]} 10. f4 {[%clk 0:02:47]}  Bb7 {[%clk 0:02:58]} 11. Qe2 {[%clk 0:02:40]}  Nbd7 {[%clk 0:02:57]} 12. Rad1 {[%clk 0:02:16]}  b4 {[%clk 0:02:54]} 13. Na4 {[%clk 0:01:40]}  h6 {[%clk 0:02:39]} 14. Bh4 {[%clk 0:01:38]}  O-O-O {[%clk 0:02:32]} 15. Bxa6 {[%clk 0:01:23]}  Bxa6 {[%clk 0:02:21]} 16. Qxa6+ {[%clk 0:01:22]}  Qb7 {[%clk 0:02:21]} 17. Qa5 {[%clk 0:01:16]}  Rhe8 {[%clk 0:02:05]} 18. Nb5 {[%clk 0:01:10]}  Nxe4 {[%clk 0:01:43]} 19. Bxe7 {[%clk 0:00:46]}  Rxe7 {[%clk 0:01:43]} 20. Rxd6 {[%clk 0:00:41]}  Nxd6 {[%clk 0:01:34]} 21. Nxd6+ {[%clk 0:00:40]} 1-0

[Event "December 12 Late 2023"]
[Site "https://www.chess.com"]
[Date "2023.12.12"]
[Round "8"]
[White "Rios Escobar, Adan"]
[Black "Luxama, Jacques Muller"]
[Result "1-0"]
[Board "99"]
[TimeControl "180+1"]
[WhiteFideId "3403645"]
[BlackFideId "11900113"]
[WhiteElo "2373"]
[BlackElo "2150"]
[WhiteTeam "CHI"]
[BlackTeam "HAI"]
[WhiteClock "0:00:24"]
[BlackClock "0:00:48"]

1. Nf3 {[%clk 0:03:00]}  Nf6 {[%clk 0:02:55]} 2. c4 {[%clk 0:02:54]}  g6 {[%clk 0:02:55]} 3. Nc3 {[%clk 0:02:55]}  Bg7 {[%clk 0:02:56]} 4. e4 {[%clk 0:02:55]}  O-O {[%clk 0:02:56]} 5. d4 {[%clk 0:02:56]}  d6 {[%clk 0:02:56]} 6. Bd3 {[%clk 0:02:56]}  e5 {[%clk 0:02:56]} 7. d5 {[%clk 0:02:56]}  Nbd7 {[%clk 0:02:51]} 8. O-O {[%clk 0:02:54]}  Nc5 {[%clk 0:02:49]} 9. Bc2 {[%clk 0:02:55]}  a5 {[%clk 0:02:49]} 10. a3 {[%clk 0:02:55]}  Bd7 {[%clk 0:02:47]} 11. Rb1 {[%clk 0:02:55]}  a4 {[%clk 0:02:47]} 12. Be3 {[%clk 0:02:53]}  Qe8 {[%clk 0:02:43]} 13. Bxc5 {[%clk 0:02:43]}  dxc5 {[%clk 0:02:43]} 14. Re1 {[%clk 0:02:42]}  Nh5 {[%clk 0:02:42]} 15. d6 {[%clk 0:02:19]}  cxd6 {[%clk 0:02:21]} 16. Qxd6 {[%clk 0:02:16]}  Rc8 {[%clk 0:02:20]} 17. Nd5 {[%clk 0:02:12]}  Kh8 {[%clk 0:02:19]} 18. Nb6 {[%clk 0:02:07]}  Rd8 {[%clk 0:02:15]} 19. Qxc5 {[%clk 0:02:05]}  Bc6 {[%clk 0:02:13]} 20. Red1 {[%clk 0:01:58]}  Rxd1+ {[%clk 0:02:13]} 21. Rxd1 {[%clk 0:01:59]}  Nf4 {[%clk 0:02:13]} 22. Nd5 {[%clk 0:01:41]}  Bxd5 {[%clk 0:02:08]} 23. cxd5 {[%clk 0:01:34]}  Qd7 {[%clk 0:02:07]} 24. Nxe5 {[%clk 0:01:26]}  Qd8 {[%clk 0:01:53]} 25. Nf3 {[%clk 0:01:15]}  Qd7 {[%clk 0:01:47]} 26. h3 {[%clk 0:01:01]}  Rc8 {[%clk 0:01:45]} 27. Bxa4 {[%clk 0:01:01]}  Nxh3+ {[%clk 0:01:34]} 28. gxh3 {[%clk 0:01:00]}  Qxh3 {[%clk 0:01:32]} 29. Qe3 {[%clk 0:00:56]}  Bh6 {[%clk 0:01:31]} 30. Qd4+ {[%clk 0:00:52]}  Kg8 {[%clk 0:01:31]} 31. Qd3 {[%clk 0:00:47]}  Bf4 {[%clk 0:01:25]} 32. d6 {[%clk 0:00:38]}  Rc5 {[%clk 0:01:24]} 33. d7 {[%clk 0:00:32]}  Rg5+ {[%clk 0:01:19]} 34. Nxg5 {[%clk 0:00:29]}  Qh2+ {[%clk 0:01:00]} 35. Kf1 {[%clk 0:00:29]}  Bxg5 {[%clk 0:00:55]} 36. d8=Q+ {[%clk 0:00:26]}  Kg7 {[%clk 0:00:48]} 37. Qxg5 {[%clk 0:00:24]} 1-0

[Event "December 12 Late 2023"]
[Site "https://www.chess.com"]
[Date "2023.12.12"]
[Round "8"]
[White "Khokhlova, Daria"]
[Black "Manfroi, Alexander Giannini"]
[Result "1-0"]
[Board "102"]
[TimeControl "180+1"]
[WhiteFideId "24182729"]
[BlackFideId "22739335"]
[WhiteElo "2290"]
[BlackElo "2197"]
[WhiteTeam "FID"]
[BlackTeam "BRA"]
[WhiteClock "0:00:22"]
[BlackClock "0:00:00"]

1. d4 {[%clk 0:03:00]}  Nf6 {[%clk 0:02:59]} 2. c4 {[%clk 0:03:00]}  e6 {[%clk 0:03:00]} 3. g3 {[%clk 0:02:59]}  Bb4+ {[%clk 0:02:58]} 4. Bd2 {[%clk 0:02:58]}  a5 {[%clk 0:02:59]} 5. Bg2 {[%clk 0:02:58]}  d5 {[%clk 0:02:58]} 6. Qc2 {[%clk 0:02:54]}  c6 {[%clk 0:02:55]} 7. a3 {[%clk 0:02:52]}  Bxd2+ {[%clk 0:02:55]} 8. Nxd2 {[%clk 0:02:52]}  O-O {[%clk 0:02:55]} 9. Ngf3 {[%clk 0:02:51]}  Nbd7 {[%clk 0:02:54]} 10. O-O {[%clk 0:02:51]}  Rb8 {[%clk 0:02:51]} 11. e4 {[%clk 0:02:50]}  dxe4 {[%clk 0:02:51]} 12. Nxe4 {[%clk 0:02:51]}  Nxe4 {[%clk 0:02:51]} 13. Qxe4 {[%clk 0:02:51]}  Nf6 {[%clk 0:02:52]} 14. Qc2 {[%clk 0:02:47]}  Qb6 {[%clk 0:02:52]} 15. Rfd1 {[%clk 0:02:43]}  Bd7 {[%clk 0:02:34]} 16. Ne5 {[%clk 0:02:37]}  Be8 {[%clk 0:02:34]} 17. b3 {[%clk 0:02:34]}  Nd7 {[%clk 0:02:28]} 18. Nf3 {[%clk 0:02:23]}  f6 {[%clk 0:02:23]} 19. Re1 {[%clk 0:02:20]}  Bf7 {[%clk 0:02:23]} 20. Bh3 {[%clk 0:02:17]}  f5 {[%clk 0:01:43]} 21. Qc3 {[%clk 0:02:10]}  Rbd8 {[%clk 0:01:36]} 22. Rad1 {[%clk 0:02:01]}  Nf6 {[%clk 0:01:35]} 23. Ng5 {[%clk 0:01:59]}  Rfe8 {[%clk 0:01:23]} 24. Bg2 {[%clk 0:01:59]}  h6 {[%clk 0:01:16]} 25. Nh3 {[%clk 0:01:40]}  c5 {[%clk 0:01:11]} 26. dxc5 {[%clk 0:01:28]}  Qxc5 {[%clk 0:01:10]} 27. b4 {[%clk 0:01:28]}  axb4 {[%clk 0:01:10]} 28. axb4 {[%clk 0:01:29]}  Qc7 {[%clk 0:00:58]} 29. Rxd8 {[%clk 0:01:17]}  Rxd8 {[%clk 0:00:47]} 30. Nf4 {[%clk 0:01:17]}  e5 {[%clk 0:00:29]} 31. Nd3 {[%clk 0:01:09]}  e4 {[%clk 0:00:25]} 32. Ne5 {[%clk 0:01:00]}  Nd7 {[%clk 0:00:18]} 33. Nxf7 {[%clk 0:00:58]}  Kxf7 {[%clk 0:00:18]} 34. f3 {[%clk 0:00:58]}  Nb6 {[%clk 0:00:17]} 35. fxe4 {[%clk 0:00:57]}  Qxc4 {[%clk 0:00:16]} 36. Qf3 {[%clk 0:00:42]}  Qd4+ {[%clk 0:00:14]} 37. Kh1 {[%clk 0:00:41]}  g6 {[%clk 0:00:14]} 38. exf5 {[%clk 0:00:41]}  gxf5 {[%clk 0:00:14]} 39. Qxf5+ {[%clk 0:00:37]}  Qf6 {[%clk 0:00:14]} 40. Qh5+ {[%clk 0:00:30]}  Kg7 {[%clk 0:00:13]} 41. Rf1 {[%clk 0:00:31]}  Qg6 {[%clk 0:00:06]} 42. Qe5+ {[%clk 0:00:29]}  Kh7 {[%clk 0:00:00]} 43. Be4 {[%clk 0:00:22]} 1-0

[Event "December 12 Late 2023"]
[Site "https://www.chess.com"]
[Date "2023.12.12"]
[Round "8"]
[White "Biliy, Vadim"]
[Black "BestestBP"]
[Result "1-0"]
[Board "103"]
[TimeControl "180+1"]
[WhiteFideId "14114127"]
[WhiteElo "2279"]
[BlackElo "2159"]
[WhiteTeam "UKR"]
[WhiteClock "0:00:20"]
[BlackClock "0:00:00"]

1. d4 {[%clk 0:02:53]}  Nf6 {[%clk 0:02:59]} 2. Nf3 {[%clk 0:02:53]}  e6 {[%clk 0:03:00]} 3. e3 {[%clk 0:02:51]}  Be7 {[%clk 0:02:59]} 4. Be2 {[%clk 0:02:46]}  O-O {[%clk 0:03:00]} 5. O-O {[%clk 0:02:46]}  b6 {[%clk 0:03:00]} 6. c4 {[%clk 0:02:45]}  Bb7 {[%clk 0:03:01]} 7. Nc3 {[%clk 0:02:46]}  d5 {[%clk 0:02:54]} 8. b3 {[%clk 0:02:37]}  Nbd7 {[%clk 0:02:54]} 9. Bb2 {[%clk 0:02:33]}  Rc8 {[%clk 0:02:46]} 10. cxd5 {[%clk 0:02:25]}  exd5 {[%clk 0:02:45]} 11. Rc1 {[%clk 0:02:15]}  c5 {[%clk 0:02:45]} 12. dxc5 {[%clk 0:02:15]}  bxc5 {[%clk 0:02:40]} 13. Bb5 {[%clk 0:02:12]}  a6 {[%clk 0:02:28]} 14. Ba4 {[%clk 0:02:12]}  Nb6 {[%clk 0:02:28]} 15. Qe2 {[%clk 0:01:52]}  Nxa4 {[%clk 0:02:16]} 16. Nxa4 {[%clk 0:01:51]}  Qa5 {[%clk 0:01:47]} 17. Rfd1 {[%clk 0:01:42]}  c4 {[%clk 0:01:36]} 18. Nd4 {[%clk 0:01:33]}  Ne4 {[%clk 0:01:23]} 19. Nf5 {[%clk 0:01:30]}  c3 {[%clk 0:00:56]} 20. Nxe7+ {[%clk 0:01:20]}  Kh8 {[%clk 0:00:56]} 21. Ba1 {[%clk 0:01:07]}  Rc7 {[%clk 0:00:42]} 22. Nf5 {[%clk 0:01:02]}  d4 {[%clk 0:00:36]} 23. Nxd4 {[%clk 0:00:58]}  Qg5 {[%clk 0:00:30]} 24. f3 {[%clk 0:00:56]}  Nd2 {[%clk 0:00:20]} 25. Rxc3 {[%clk 0:00:50]}  Rxc3 {[%clk 0:00:17]} 26. Nxc3 {[%clk 0:00:43]}  Nxf3+ {[%clk 0:00:04]} 27. Nxf3 {[%clk 0:00:42]}  Bxf3 {[%clk 0:00:03]} 28. Qxf3 {[%clk 0:00:41]}  Re8 {[%clk 0:00:03]} 29. Nd5 {[%clk 0:00:35]}  h6 {[%clk 0:00:03]} 30. Qxf7 {[%clk 0:00:30]}  Re5 {[%clk 0:00:02]} 31. Bxe5 {[%clk 0:00:23]}  Qxe5 {[%clk 0:00:03]} 32. Qf8+ {[%clk 0:00:21]}  Kh7 {[%clk 0:00:00]} 33. Qf4 {[%clk 0:00:20]} 1-0

[Event "December 12 Late 2023"]
[Site "https://www.chess.com"]
[Date "2023.12.12"]
[Round "8"]
[White "Novikova, Margarita"]
[Black "Cooper, Aaron"]
[Result "0-1"]
[Board "105"]
[TimeControl "180+1"]
[WhiteFideId "14109689"]
[BlackFideId "2634945"]
[WhiteElo "2132"]
[BlackElo "2252"]
[WhiteTeam "GER"]
[BlackTeam "CAN"]
[WhiteClock "0:00:09"]
[BlackClock "0:00:33"]

1. e4 {[%clk 0:02:59]}  c5 {[%clk 0:02:58]} 2. Nc3 {[%clk 0:02:59]}  Nc6 {[%clk 0:02:58]} 3. d3 {[%clk 0:02:59]}  e6 {[%clk 0:02:57]} 4. Be3 {[%clk 0:03:00]}  d5 {[%clk 0:02:54]} 5. exd5 {[%clk 0:02:57]}  exd5 {[%clk 0:02:55]} 6. Bd2 {[%clk 0:02:57]}  Nf6 {[%clk 0:02:54]} 7. Nf3 {[%clk 0:02:57]}  Be7 {[%clk 0:02:52]} 8. Be2 {[%clk 0:02:57]}  O-O {[%clk 0:02:51]} 9. O-O {[%clk 0:02:58]}  Re8 {[%clk 0:02:51]} 10. h3 {[%clk 0:02:57]}  h6 {[%clk 0:02:50]} 11. Re1 {[%clk 0:02:56]}  Bf5 {[%clk 0:02:45]} 12. d4 {[%clk 0:02:54]}  cxd4 {[%clk 0:02:41]} 13. Nb5 {[%clk 0:02:53]}  Bc5 {[%clk 0:02:36]} 14. Bf4 {[%clk 0:02:42]}  Rc8 {[%clk 0:02:19]} 15. Nbxd4 {[%clk 0:02:13]}  Nxd4 {[%clk 0:02:15]} 16. Nxd4 {[%clk 0:02:13]}  Bxd4 {[%clk 0:01:28]} 17. Qxd4 {[%clk 0:02:14]}  Rxc2 {[%clk 0:01:28]} 18. Bb5 {[%clk 0:02:07]}  Rxe1+ {[%clk 0:01:26]} 19. Rxe1 {[%clk 0:02:06]}  Qa5 {[%clk 0:01:25]} 20. Re5 {[%clk 0:01:12]}  Qxb5 {[%clk 0:01:23]} 21. Rxf5 {[%clk 0:01:11]}  Qxb2 {[%clk 0:01:23]} 22. Qe3 {[%clk 0:01:07]}  d4 {[%clk 0:01:09]} 23. Qg3 {[%clk 0:00:45]}  Ne4 {[%clk 0:01:06]} 24. Qh4 {[%clk 0:00:29]}  Rxf2 {[%clk 0:01:00]} 25. Qg4 {[%clk 0:00:11]}  Rf1+ {[%clk 0:00:45]} 26. Kh2 {[%clk 0:00:10]}  Qf2 {[%clk 0:00:34]} 27. Bxh6 {[%clk 0:00:09]}  Qg1# {[%clk 0:00:33]} 0-1